bitfinex/quotes_ETHUSD_20250129
["timestamp","ask_amount","ask_price","bid_price","bid_amount"]
[1738193506526,3.1894,3135.4,3135.0,0.8047]
[1738193506944,3.18949,3135.3,3135.0,0.8047]
[1738193507643,3.19684,3135.5,3135.0,0.8047]
[1738193507872,3.18944,3135.4,3135.0,0.8047]
[1738193508271,3.19684,3135.5,3135.0,0.8047]
[1738193509169,3.1894,3135.4,3135.0,0.8047]
[1738193509372,3.18954,3135.3,3135.0,0.8047]
[1738193511366,3.19684,3135.5,3135.0,0.8047]
[1738193511567,3.18946,3135.4,3135.0,0.8047]
[1738193513296,3.18952,3135.3,3135.0,0.8047]
[1738193515308,3.19684,3135.5,3135.0,0.8047]
[1738193515678,6.38621,3135.5,3135.0,0.8047]
[1738193516313,3.18918,3135.6,3135.0,3.99446]
[1738193516606,0.2883,3135.9,3135.0,0.8047]
[1738193516812,3.18939,3135.4,3135.0,0.8047]
[1738193517413,3.18953,3135.3,3135.0,0.8047]
[1738193517816,3.18939,3135.4,3135.0,0.8047]
[1738193518186,3.18921,3135.6,3135.0,0.8047]
[1738193518393,3.18921,3135.6,3135.0,4.393857]
[1738193518606,3.18921,3135.6,3135.0,3.99439]
[1738193518778,3.18921,3135.6,3135.1,3.18968]
[1738193518986,3.18882,3136.0,3134.9,3.18989]
[1738193519192,3.1884,3136.4,3135.6,0.7886]
[1738193519511,3.18863,3136.2,3135.8,0.7886]
[1738193519711,3.18895,3135.9,3135.5,0.7886]
[1738193520107,3.18885,3136.0,3135.5,0.7886]
[1738193520491,3.18894,3135.9,3135.5,0.7886]
[1738193521029,3.18915,3135.7,3135.5,0.7886]
[1738193521214,0.0075,3135.9,3135.2,0.7886]
[1738193521519,0.0075,3135.6,3135.2,3.97818]
[1738193521730,3.19668,3135.6,3135.2,0.7886]
[1738193522416,3.18892,3135.9,3135.2,0.7886]
[1738193522618,3.18899,3135.8,3135.2,3.97811]
[1738193523828,0.0075,3135.4,3134.7,3.19007]
[1738193524129,3.18956,3135.3,3134.8,0.8251]
[1738193525300,0.0075,3135.4,3134.8,4.01508]
[1738193525498,3.19688,3135.4,3134.8,4.01508]
[1738193525698,3.18949,3135.3,3134.8,0.8251]
[1738193526255,0.0075,3135.3,3134.8,0.8251]
[1738193526394,3.18979,3135.0,3134.5,3.19028]
[1738193526603,3.18979,3135.0,3134.5,4.01538]
[1738193526942,6.37956,3135.1,3134.5,4.01538]
[1738193527501,3.1973,3135.0,3134.5,4.01538]
[1738193527918,3.1973,3135.0,3134.5,0.8251]
[1738193529040,0.0075,3134.7,3134.5,0.8251]
[1738193529203,0.0075,3134.7,3134.2,0.8251]
[1738193529407,3.1902,3134.6,3134.2,0.8251]
[1738193529749,3.1902,3134.6,3133.9,0.8251]
[1738193529750,0.0075,3134.5,3133.9,0.8251]
[1738193530039,0.0075,3134.6,3134.0,3.19071]
[1738193530254,3.19035,3134.5,3133.9,0.8251]
[1738193530435,3.1977,3134.6,3133.9,0.8251]
[1738193530636,3.1977,3134.6,3133.9,4.01592]
[1738193530941,3.19045,3134.4,3133.9,0.8251]
[1738193531537,3.19045,3134.4,3133.9,4.01599]
[1738193531729,3.19782,3134.5,3133.9,4.01599]
[1738193537048,0.0075,3134.5,3134.0,3.19079]
[1738193537250,3.18986,3135.0,3134.4,0.8251]
[1738193537546,3.18986,3135.0,3134.4,4.01548]
[1738193537796,0.2883,3135.3,3134.4,0.8251]
[1738193537797,0.015,3134.9,3134.4,0.8251]
[1738193537929,0.0075,3134.6,3134.4,0.8251]
[1738193538853,3.19008,3134.8,3134.4,0.8251]
[1738193539028,3.18982,3135.0,3134.4,0.8251]
[1738193539229,3.508872,3134.9,3134.4,0.8251]
[1738193539442,0.0075,3134.8,3134.4,0.8251]
[1738193540750,3.18959,3135.2,3134.1,3.1907]
[1738193541051,3.0,3135.1,3134.7,4.01519]
[1738193541415,0.0075,3135.1,3134.7,0.8251]
[1738193545723,0.0075,3135.3,3134.7,4.01513]
[1738193545930,0.0075,3135.3,3134.9,3.18988]
[1738193546122,0.0075,3135.3,3135.0,0.8314]
[1738193546570,3.0,3135.7,3135.2,3.18957]
[1738193547254,3.1892,3135.6,3135.0,4.02109]
[1738193547457,3.18988,3135.0,3134.8,0.7828]
[1738193547623,3.18988,3135.0,3134.1,3.19066]
[1738193547624,3.18995,3134.9,3134.4,0.7828]
[1738193547825,0.0075,3134.8,3134.1,3.97349]
[1738193548056,3.1902,3134.6,3134.1,0.7828]
[1738193548855,6.38049,3134.6,3134.1,0.7828]
[1738193549162,3.1902,3134.6,3134.1,0.7828]
[1738193549530,3.19786,3134.5,3134.1,0.7828]
[1738193550141,3.19041,3134.4,3134.1,0.7828]
[1738193550434,0.646306,3134.5,3133.5,0.7892]
[1738193550435,3.19091,3133.9,3133.5,0.7892]
[1738193550734,0.0075,3133.8,3133.5,0.7892]
[1738193551130,3.19851,3133.8,3133.5,0.7892]
[1738193552466,3.19112,3133.7,3133.2,0.8043]
[1738193552963,3.20595,3133.9,3133.2,3.99591]
[1738193553164,0.015,3133.9,3133.2,3.99591]
[1738193553329,3.19105,3133.8,3133.2,0.8043]
[1738193553532,3.19105,3133.8,3133.2,3.99584]
[1738193555970,3.19868,3133.7,3133.2,0.8043]
[1738193558238,0.0075,3133.6,3133.2,0.8043]
[1738193558445,0.0075,3133.5,3133.2,0.8043]
[1738193558674,3.19883,3133.5,3133.2,0.8043]
[1738193558975,0.0075,3133.5,3132.8,3.19195]
[1738193559180,0.0075,3133.3,3132.9,0.8325]
[1738193560080,3.19902,3133.3,3132.9,0.8325]
[1738193560424,3.1924,3132.5,3132.1,0.81]
[1738193560540,3.19225,3132.6,3132.1,0.81]
[1738193560744,3.19225,3132.6,3131.2,3.80818974]
[1738193560745,3.19247,3132.4,3131.8,0.8172]
[1738193561276,0.015,3132.3,3131.8,0.8172]
[1738193561482,0.015,3132.3,3131.5,0.8172]
[1738193561483,0.0075,3132.0,3131.5,0.8172]
[1738193561641,3.19305,3131.8,3131.5,0.8172]
[1738193562053,3.20792,3132.0,3131.5,0.8172]
[1738193562249,0.0075,3131.8,3131.5,0.8172]
[1738193563389,0.335796,3131.8,3131.2,0.8232]
[1738193563586,0.0075,3131.3,3130.8,0.7608]
[1738193563750,0.0075,3131.1,3130.4,0.7608]
[1738193564446,0.0075,3131.1,3130.5,3.19428]
[1738193564963,0.0075,3131.1,3130.6,3.19427]
[1738193566287,0.0075,3131.1,3130.4,0.7608]
[1738193566486,0.0075,3131.1,3130.6,3.19427]
[1738193566686,3.19328,3131.6,3130.4,0.7608]
[1738193566887,3.0,3131.5,3130.9,3.19395]
[1738193567250,3.0,3131.5,3130.4,0.7608]
[1738193567251,0.015,3131.4,3130.4,0.7608]
[1738193567468,3.19367,3131.2,3130.6,3.19421]
[1738193568192,0.0075,3131.3,3130.7,3.19415]
[1738193568415,0.0075,3131.3,3130.9,3.19395]
[1738193568593,6.19338,3131.5,3130.9,3.19395]
[1738193568971,3.20096,3131.4,3130.8,3.19404]
[1738193569381,3.20096,3131.4,3130.7,3.19415]
[1738193569713,0.0075,3131.3,3130.7,3.19415]
[1738193569855,0.0075,3131.1,3130.5,3.19436]
[1738193570053,3.20127,3131.1,3130.5,3.19436]
[1738193571830,3.20127,3131.1,3130.4,0.7608]
[1738193571831,0.0075,3131.0,3130.4,0.7608]
[1738193572029,3.19399,3130.9,3130.4,0.7608]
[1738193572338,3.19399,3130.9,3130.4,3.95527]
[1738193572339,0.0075,3130.9,3130.4,3.95527]
[1738193573426,0.349707,3131.0,3130.4,3.95527]
[1738193573427,3.20887,3131.0,3130.4,3.95527]
[1738193573606,3.0,3131.3,3130.4,0.7608]
[1738193573806,3.0,3131.3,3130.6,3.1942]
[1738193574559,3.19415,3130.8,3130.1,4.02168]
[1738193574863,0.0075,3130.9,3130.3,3.19451]
[1738193575062,3.20147,3130.9,3130.3,3.19451]
[1738193576563,3.20884,3131.1,3130.4,3.19437]
[1738193577956,3.20884,3131.1,3130.1,0.8269]
[1738193578178,3.20884,3131.1,3130.5,3.19427]
[1738193578384,3.19357,3131.3,3130.7,3.1941]
[1738193578683,0.0075,3131.1,3130.6,0.8081]
[1738193580485,0.0075,3131.1,3130.6,4.00234]
[1738193580990,3.20129,3131.1,3130.6,0.8081]
[1738193581289,0.0075,3131.1,3130.6,0.8081]
[1738193581581,3.19389,3131.0,3130.6,0.8081]
[1738193581790,0.0075,3131.1,3130.6,0.8081]
[1738193581998,3.20126,3131.1,3130.6,0.8081]
[1738193582594,3.541669,3131.4,3130.6,0.8081]
[1738193582869,3.19356,3131.3,3130.7,3.59435]
[1738193583108,3.20116,3131.2,3130.7,3.19411]
[1738193585784,3.20856,3131.3,3130.7,3.19411]
[1738193585971,3.19336,3131.5,3130.9,3.19396]
[1738193586154,3.19322,3131.7,3131.0,3.95454]
[1738193586355,3.19322,3131.7,3131.1,3.19371]
[1738193586754,3.19362,3131.3,3131.0,0.7607]
[1738193586963,6.38727,3131.3,3130.7,3.96114]
[1738193587175,3.19362,3131.3,3130.7,3.96114]
[1738193587387,0.2883,3131.9,3130.7,3.96114]
[1738193587388,0.2883,3134.0,3131.7,0.55]
[1738193587551,3.19171,3133.2,3132.6,3.767]
[1738193587752,3.19122,3133.6,3132.7,3.19213]
[1738193587968,3.19175,3133.1,3132.6,0.767]
[1738193588251,3.19175,3133.1,3131.7,3.73001836]
[1738193588252,0.0075,3132.9,3132.3,0.7625]
[1738193588560,3.19125,3133.6,3132.8,3.19194]
[1738193588902,3.19091,3133.9,3133.1,0.7625]
[1738193589052,3.19091,3133.9,3133.1,3.95422]
[1738193589247,3.19091,3133.9,3133.2,3.19153]
[1738193589248,0.015,3133.9,3133.2,3.19153]
[1738193591665,0.015,3133.9,3133.3,3.19145]
[1738193592398,0.2883,3134.5,3133.1,0.7625]
[1738193592693,0.2883,3134.8,3134.0,3.19071]
[1738193592880,0.636109,3134.8,3134.2,3.19053]
[1738193593767,0.015,3134.7,3134.2,3.19053]
[1738193594153,0.0075,3134.7,3134.3,3.19049]
[1738193594352,0.2883,3135.2,3134.5,3.19026]
[1738193594586,0.015,3135.0,3134.5,3.19026]
[1738193594988,0.015,3134.4,3133.9,0.7961]
[1738193595188,0.015,3134.4,3133.6,4.00817]
[1738193595357,0.015,3134.4,3133.8,3.19097]
[1738193595553,0.015,3134.6,3133.7,3.0]
[1738193595780,0.334011,3134.6,3133.9,3.1909]
[1738193596692,3.2052,3134.6,3133.9,3.1909]
[1738193598495,0.015,3134.4,3133.6,0.817]
[1738193598798,0.0075,3134.1,3133.0,0.7537]
[1738193598985,0.0075,3133.9,3133.6,3.19113]
[1738193599386,0.0075,3133.9,3133.7,3.19104]
[1738193599694,0.0075,3134.3,3133.7,3.19104]
[1738193599992,0.015,3134.3,3133.7,3.19104]
[1738193600199,0.015,3134.3,3133.7,4.00824]
[1738193600364,0.0075,3134.1,3133.7,4.00824]
[1738193600766,0.0075,3134.1,3133.8,3.19094]
[1738193600982,3.0,3134.7,3133.7,0.8172]
[1738193600983,0.2883,3134.9,3133.7,0.8172]
[1738193601183,0.2883,3134.9,3134.4,3.19032]
[1738193601395,0.2883,3134.9,3134.2,3.1906]
[1738193601699,0.35531,3134.8,3134.3,3.19049]
[1738193601861,3.19071,3134.1,3133.5,3.1913]
[1738193602057,0.0075,3134.0,3133.5,3.1913]
[1738193602261,0.0075,3134.0,3133.6,3.0]
[1738193602475,0.0075,3134.0,3133.7,3.1911]
[1738193602695,0.015,3134.2,3133.6,3.0]
[1738193602882,0.0075,3134.0,3133.5,3.1913]
[1738193603401,0.0075,3134.0,3133.1,3.7964]
[1738193603563,0.0075,3134.0,3133.5,3.19122]
[1738193605799,0.0075,3134.0,3133.6,3.19121]
[1738193606597,0.0075,3134.1,3133.6,3.19121]
[1738193606788,0.0075,3134.1,3133.5,3.19122]
[1738193606789,0.32731,3134.1,3133.5,3.19122]
[1738193608205,3.51811,3134.1,3133.5,3.19122]
[1738193608411,0.32731,3134.1,3133.6,3.19121]
[1738193610947,3.20611,3133.8,3133.0,3.19172]
[1738193611446,0.0075,3133.5,3133.0,3.19172]
[1738193611612,0.327372,3133.5,3133.0,3.19172]
[1738193611999,0.0075,3133.2,3132.6,3.19214]
[1738193612498,0.0075,3132.8,3132.2,3.19255]
[1738193612699,0.327452,3132.8,3132.2,3.19255]
[1738193614300,3.519502,3132.8,3132.3,3.19254]
[1738193614595,3.519502,3132.8,3132.2,3.19261]
[1738193617201,0.327452,3132.8,3132.3,3.19246]
[1738193617405,0.0075,3133.1,3132.0,0.7856]
[1738193617643,0.0075,3133.1,3132.5,3.1923]
[1738193617944,3.19923,3133.1,3132.5,3.1923]
[1738193618301,0.015,3133.1,3132.5,3.1923]
[1738193618745,3.20673,3133.1,3132.5,3.1923]
[1738193619050,3.19227,3132.6,3132.0,3.7856]
[1738193619208,3.48057,3132.6,3132.0,3.19282]
[1738193620323,3.48057,3132.6,3131.9,3.19287]
[1738193620660,4.148583,3132.6,3131.9,3.19287]
[1738193620835,4.148583,3132.6,3132.0,3.19282]
[1738193621011,0.956313,3132.6,3131.9,3.19287]
[1738193621214,0.0075,3132.7,3132.2,3.19264]
[1738193623164,0.2883,3132.9,3132.2,3.19264]
[1738193623450,3.19102,3133.8,3133.2,3.19155]
[1738193623609,3.47918,3134.0,3133.3,3.1915]
[1738193623610,6.67009,3134.0,3133.3,3.1915]
[1738193623814,0.015,3133.8,3133.3,3.1915]
[1738193624006,0.015,3133.8,3133.2,3.19155]
[1738193624007,0.0075,3133.8,3133.2,3.19155]
[1738193624223,3.47918,3134.0,3132.9,0.7793]
[1738193624224,0.2883,3134.0,3133.6,3.19118]
[1738193624449,3.19062,3134.2,3133.6,3.19118]
[1738193624655,0.326562,3134.1,3133.4,3.19135]
[1738193624850,3.517282,3134.1,3133.5,3.19124]
[1738193625432,0.326562,3134.1,3133.5,3.19124]
[1738193625733,3.47873,3134.4,3133.0,0.55]
[1738193625931,3.47873,3134.4,3133.9,3.19084]
[1738193625932,0.2883,3134.4,3133.9,3.19084]
[1738193626128,0.2883,3134.7,3133.9,3.19084]
[1738193626354,3.19778,3134.6,3134.1,3.1907]
[1738193626554,4.118289,3134.6,3134.1,3.1907]
[1738193626761,4.118289,3134.6,3133.9,3.19084]
[1738193626960,4.118289,3134.6,3134.1,3.19069]
[1738193627556,3.1903,3134.5,3133.9,3.19084]
[1738193627743,3.19058,3134.3,3133.7,3.99099]
[1738193628069,0.0075,3134.3,3133.7,3.99099]
[1738193628380,3.19801,3134.3,3133.7,3.99099]
[1738193629369,0.015,3134.5,3133.7,3.99099]
[1738193629570,3.20537,3134.5,3133.8,3.191]
[1738193629780,0.0075,3134.5,3133.8,0.718199]
[1738193629937,0.2883,3134.7,3134.1,3.19061]
[1738193630452,3.19769,3134.6,3133.9,6.38175]
[1738193630645,3.19769,3134.6,3133.9,3.19084]
[1738193630863,3.19769,3134.6,3134.0,3.19076]
[1738193633269,0.0075,3134.6,3133.9,3.19084]
[1738193633477,0.0075,3134.6,3134.1,3.19069]
[1738193634578,3.1977,3134.6,3133.9,3.589914]
[1738193635179,3.19773,3134.6,3134.0,3.19071]
[1738193635713,0.015,3134.8,3134.1,3.1907]
[1738193635876,0.0075,3134.6,3134.1,3.1907]
[1738193636378,0.93360555,3135.0,3134.4,3.96228]
[1738193636379,0.2883,3135.0,3134.4,3.96228]
[1738193636582,3.18972,3135.1,3134.4,3.96228]
[1738193636793,3.20479,3135.0,3134.4,3.96228]
[1738193637749,0.0075,3134.6,3134.1,3.6780484]
[1738193637958,0.0075,3134.6,3134.1,3.0]
[1738193638161,0.0075,3134.6,3134.1,6.1907]
[1738193638648,3.19771,3134.6,3134.1,3.0]
[1738193639386,0.2883,3135.1,3134.3,3.19044]
[1738193640072,0.0075,3135.0,3134.3,3.19044]
[1738193640390,3.18999,3134.8,3134.3,3.19044]
[1738193640696,3.47803,3135.1,3133.7,3.19109]
[1738193640697,3.19041,3134.4,3133.7,3.19109]
[1738193640904,3.19099,3133.9,3133.3,0.77]
[1738193641061,3.19803,3134.3,3133.3,0.77]
[1738193641398,0.0075,3134.4,3133.8,3.19094]
[1738193642050,3.19791,3134.4,3133.8,3.19094]
[1738193642589,3.19791,3134.4,3133.9,3.1909]
[1738193642765,3.19791,3134.4,3133.8,3.19094]
[1738193643686,0.63087778,3134.9,3133.9,0.7858]
[1738193643687,3.47831,3134.8,3133.9,0.7858]
[1738193643894,0.2883,3134.8,3134.3,3.19049]
[1738193644963,0.0075,3134.8,3134.3,3.19049]
[1738193645296,0.2883,3135.1,3134.2,0.7858]
[1738193645589,0.2883,3134.5,3134.0,3.0]
[1738193645763,0.0075,3134.7,3134.3,3.0]
[1738193646289,0.0075,3134.7,3134.3,6.1905]
[1738193647005,0.0075,3134.7,3134.3,3.0]
[1738193648011,3.1902,3134.6,3134.0,3.19078]
[1738193648217,3.1902,3134.6,3134.1,3.0]
[1738193648384,0.0075,3134.7,3134.1,6.19069]
[1738193648585,0.0075,3134.7,3134.3,3.19047]
[1738193648985,0.0075,3134.7,3134.3,3.0]
[1738193649191,0.0075,3134.7,3134.3,6.1905]
[1738193650608,0.2883,3134.8,3134.4,3.19035]
[1738193650795,0.2883,3135.1,3134.5,3.19023]
[1738193651002,0.0075,3135.0,3134.5,3.19023]
[1738193651980,3.47799,3135.1,3134.5,3.19023]
[1738193651981,0.2883,3135.1,3134.8,3.18995]
[1738193652181,0.0075,3135.0,3134.4,3.19034]
[1738193652381,0.0075,3135.0,3134.3,3.0]
[1738193652617,3.19008,3134.8,3134.3,3.0]
[1738193653614,0.0075,3135.0,3134.3,0.701475]
[1738193653820,3.19735,3135.0,3134.3,3.0]
[1738193654115,0.2883,3135.1,3134.4,3.19031]
[1738193654284,3.47768,3135.4,3134.7,3.19008]
[1738193654482,3.47768,3135.4,3134.7,4.01421]
[1738193654483,0.0075,3135.3,3134.7,4.01421]
[1738193654689,0.0075,3135.3,3134.9,3.18987]
[1738193654886,0.34454512,3136.7,3135.1,3.18967]
[1738193655126,3.18845,3136.4,3135.8,3.18895]
[1738193655350,0.2883,3136.5,3135.8,3.18893]
[1738193655618,0.2883,3136.5,3136.0,3.18868]
[1738193655784,0.0075,3136.4,3136.2,3.18856]
[1738193655989,3.80972941,3136.8,3136.2,3.18856]
[1738193656218,0.2883,3136.8,3136.3,3.18845]
[1738193656521,3.18808,3136.7,3136.1,3.18861]
[1738193657327,3.18817,3136.6,3135.9,3.18884]
[1738193657729,3.18838,3136.4,3135.6,4.01334]
[1738193657894,3.18858,3136.2,3135.7,3.0]
[1738193658091,3.18838,3136.4,3135.6,0.8242]
[1738193658410,3.47628,3136.8,3136.2,3.18855]
[1738193658610,0.347628,3136.7,3136.2,3.18855]
[1738193658789,0.347628,3136.7,3136.2,3.96385]
[1738193659836,3.535698,3136.7,3136.2,3.96385]
[1738193660142,3.535698,3136.7,3136.2,0.7753]
[1738193660317,3.18817,3136.6,3136.2,0.7753]
[1738193661240,3.47682,3136.3,3135.6,3.18916]
[1738193661437,3.47682,3136.3,3135.7,3.0]
[1738193661835,3.18852,3136.3,3135.8,3.18897]
[1738193662040,3.18831,3136.5,3135.8,3.18897]
[1738193662263,3.18831,3136.5,3136.0,0.786]
[1738193662541,3.18839,3136.4,3136.0,0.786]
[1738193663045,3.18831,3136.5,3136.0,0.786]
[1738193663346,3.18848,3136.3,3135.7,3.7886]
[1738193663946,0.0075,3136.0,3135.6,3.0]
[1738193664118,3.18858,3136.2,3135.6,6.18908]
[1738193664320,3.18868,3136.1,3135.6,6.18908]
[1738193664942,3.18877,3136.0,3135.4,3.18938]
[1738193665150,0.926018,3136.1,3135.3,0.7913]
[1738193665313,3.18879,3136.0,3135.4,3.0]
[1738193665510,3.18888,3135.9,3135.4,3.0]
[1738193666807,3.47705,3136.1,3135.4,3.0]
[1738193667008,3.18877,3136.0,3135.4,3.0]
[1738193667212,3.18909,3135.7,3135.3,0.7913]
[1738193667510,3.18936,3135.5,3135.0,0.8174]
[1738193667914,3.18894,3135.9,3135.0,4.00712]
[1738193668145,3.18894,3135.9,3135.2,3.18952]
[1738193668811,3.18901,3135.8,3135.3,3.0]
[1738193669457,3.18887,3135.9,3135.3,6.18947]
[1738193670166,3.18881,3136.0,3135.3,6.18947]
[1738193670370,3.18888,3135.9,3135.3,6.18947]
[1738193670710,3.18881,3136.0,3135.3,6.18947]
[1738193671046,3.18881,3136.0,3135.4,3.18936]
[1738193671243,3.18894,3135.9,3135.3,3.0]
[1738193672754,3.189,3135.8,3135.3,3.0]
[1738193674855,3.18858,3136.2,3135.4,0.7993]
[1738193675159,3.19585,3136.5,3135.7,3.18899]
[1738193675319,3.18855,3136.3,3135.6,3.18916]
[1738193675518,3.18855,3136.3,3135.5,3.0]
[1738193675854,3.18867,3136.1,3135.5,6.18927]
[1738193676052,3.18867,3136.1,3135.4,0.7993]
[1738193676351,3.18894,3135.9,3135.4,3.7993]
[1738193676552,3.18894,3135.9,3135.4,0.7993]
[1738193676931,3.18894,3135.9,3135.4,3.98866]
[1738193677527,0.2883,3136.1,3135.4,3.98866]
[1738193677726,3.18851,3136.3,3135.4,3.98864]
[1738193677727,3.18847,3136.3,3135.4,3.98864]
[1738193677933,0.0075,3136.2,3135.4,3.98864]
[1738193678131,3.18883,3136.0,3135.4,3.98864]
[1738193678432,3.18883,3136.0,3135.5,3.18925]
[1738193679360,3.18883,3136.0,3135.4,3.98864]
[1738193679544,3.18906,3135.8,3135.4,0.7993]
[1738193679850,3.18909,3135.7,3135.1,0.7728]
[1738193680353,3.18909,3135.7,3135.1,3.96246]
[1738193680859,3.18909,3135.7,3135.2,6.18957]
[1738193681152,3.18909,3135.7,3135.2,3.0]
[1738193681359,3.18929,3135.5,3135.2,3.0]
[1738193681545,6.37867,3135.5,3135.2,3.0]
[1738193681741,3.18941,3135.4,3134.8,0.8021]
[1738193681946,3.18941,3135.4,3134.8,3.99208]
[1738193682145,3.18929,3135.5,3134.9,3.18988]
[1738193682460,3.18929,3135.5,3134.9,6.18985]
[1738193682660,0.0075,3135.6,3135.0,3.18976]
[1738193683251,3.1967,3135.6,3135.0,3.18976]
[1738193683659,3.1893,3135.5,3134.9,6.18985]
[1738193684181,3.1893,3135.5,3135.0,3.18979]
[1738193684455,0.0075,3135.6,3135.0,3.18979]
[1738193685364,3.19674,3135.6,3135.0,3.18979]
[1738193685766,3.18929,3135.5,3135.0,3.18979]
[1738193690367,3.508009,3135.7,3135.0,3.18979]
[1738193690547,3.18891,3135.9,3134.9,0.7975]
[1738193690744,3.18891,3135.9,3135.4,0.7975]
[1738193691151,3.18898,3135.8,3135.4,0.7975]
[1738193692974,3.18918,3135.6,3135.1,3.18968]
[1738193693143,3.18918,3135.6,3135.1,4.00408]
[1738193693967,3.18941,3135.4,3135.1,0.8144]
[1738193694167,3.47748,3135.6,3135.1,0.8144]
[1738193694375,3.18931,3135.5,3135.1,0.8144]
[1738193694575,3.1894,3135.4,3135.1,0.8144]
[1738193694745,3.1894,3135.4,3135.0,3.0]
[1738193695389,3.18918,3135.6,3135.0,6.18972]
[1738193695599,3.18918,3135.6,3134.8,3.7571]
[1738193695600,3.18945,3135.4,3134.8,3.7571]
[1738193695836,3.18945,3135.4,3134.8,6.94707]
[1738193697698,3.18955,3135.3,3134.8,0.7571]
[1738193697901,3.1896,3135.2,3134.7,3.0]
[1738193698951,3.18997,3134.9,3134.6,0.8158]
[1738193699172,0.015,3135.0,3134.3,0.8158]
[1738193699478,3.19051,3134.3,3133.9,0.8158]
[1738193699868,0.0075,3134.4,3133.9,0.8158]
[1738193700195,0.0075,3134.4,3133.6,0.8317]
[1738193700366,3.19123,3133.6,3133.2,0.8317]
[1738193700687,3.19131,3133.6,3133.2,0.8317]
[1738193700905,3.19138,3133.5,3132.9,4.0236]
[1738193701114,3.19144,3133.4,3132.9,3.8317]
[1738193701278,3.19138,3133.5,3132.9,0.8317]
[1738193701455,3.19179,3133.1,3132.6,0.8055]
[1738193701857,3.19134,3133.5,3132.7,3.19213]
[1738193702125,3.19134,3133.5,3132.6,0.8055]
[1738193702126,0.2883,3134.2,3132.9,0.8055]
[1738193702277,3.1903,3134.5,3133.6,3.19111]
[1738193702457,0.2883,3134.6,3133.4,3.0]
[1738193702659,3.1899,3134.9,3134.3,3.19043]
[1738193702909,3.47809,3135.0,3134.4,3.17869]
[1738193703216,0.0075,3134.6,3134.1,3.0]
[1738193703354,0.015,3134.9,3134.1,0.8187]
[1738193703355,0.0075,3134.5,3134.1,0.8187]
[1738193703718,3.19099,3133.9,3132.8,0.399763]
[1738193703862,0.0075,3133.8,3133.1,0.8187]
[1738193704061,0.015,3133.6,3133.1,0.8187]
[1738193704263,0.0075,3133.3,3132.8,3.19193]
[1738193704622,0.0075,3133.3,3132.9,6.19188]
[1738193705115,0.2883,3133.8,3133.0,3.19173]
[1738193705322,3.19082,3134.0,3133.4,3.19137]
[1738193705522,3.19047,3134.4,3133.7,3.19107]
[1738193705660,0.2883,3134.6,3133.8,0.8065]
[1738193705985,0.015,3134.3,3133.8,3.99749]
[1738193706182,0.015,3134.3,3133.8,0.8065]
[1738193706361,0.015,3134.3,3133.9,3.1909]
[1738193706555,3.47857,3134.6,3133.9,3.1909]
[1738193706556,0.015,3134.5,3133.9,3.1909]
[1738193707194,3.1904,3134.4,3133.8,0.8065]
[1738193707390,3.1904,3134.4,3133.8,3.99748]
[1738193707577,0.0075,3134.5,3133.8,3.99748]
[1738193707781,0.0075,3134.5,3133.9,3.0]
[1738193707955,0.2883,3134.9,3134.3,3.19041]
[1738193708154,3.1898,3135.0,3134.4,0.7644]
[1738193708400,3.9167376,3135.0,3134.4,3.9548]
[1738193708700,0.0075,3134.9,3134.4,3.95476]
[1738193708903,0.0075,3134.9,3134.5,3.19029]
[1738193709190,0.0075,3134.9,3134.4,0.7644]
[1738193709694,0.0075,3134.9,3134.4,3.95478]
[1738193710500,0.0075,3135.0,3134.4,4.669309]
[1738193710660,0.0075,3135.0,3134.6,3.19019]
[1738193711196,0.2883,3135.2,3134.4,4.669309]
[1738193711372,0.2883,3135.2,3134.5,3.19021]
[1738193711558,3.18951,3135.3,3134.6,3.19011]
[1738193712163,3.18959,3135.2,3134.6,3.19011]
[1738193712768,3.18969,3135.1,3134.4,3.95478]
[1738193716426,3.1898,3135.0,3134.4,3.95478]
[1738193716900,3.508549,3135.2,3134.5,3.19029]
[1738193717090,3.18942,3135.4,3134.8,3.18999]
[1738193717490,3.18942,3135.4,3134.4,3.95471]
[1738193717799,3.18965,3135.2,3134.7,3.0]
[1738193718436,3.18981,3135.0,3134.5,3.0]
[1738193719179,0.347772,3135.3,3134.0,0.7982]
[1738193719180,3.19039,3134.5,3134.0,0.7982]
[1738193719382,3.19041,3134.4,3134.0,0.7982]
[1738193719620,3.19013,3134.7,3134.1,3.0]
[1738193720275,3.19042,3134.4,3133.8,3.19101]
[1738193720477,0.2883,3134.3,3133.7,0.7794]
[1738193720675,3.19042,3134.4,3133.8,3.19094]
[1738193720876,3.19042,3134.4,3133.8,6.19094]
[1738193721165,3.19064,3134.2,3133.4,0.8308]
[1738193721392,3.19104,3133.8,3133.4,0.8308]
[1738193721867,3.19088,3134.0,3133.4,0.8308]
[1738193722301,3.19112,3133.7,3133.4,0.8308]
[1738193722684,3.19112,3133.7,3133.0,0.7914]
[1738193722885,0.2883,3133.4,3132.7,0.7638]
[1738193723109,3.19166,3133.2,3132.7,0.7638]
[1738193723329,3.19162,3133.3,3132.7,3.95593]
[1738193723825,3.19162,3133.3,3132.7,3.7638]
[1738193723826,3.19162,3133.2,3132.7,3.7638]
[1738193724027,3.19162,3133.2,3132.7,0.7638]